bitfinex/quotes_ETHUSD_20251124
["timestamp","ask_amount","ask_price","bid_price","bid_amount"]
[1764004896180,0.0984,2883.3,2881.2,0.71218383]
[1764004896381,0.72559411,2883.0,2881.3,0.71218383]
[1764004896593,5.661914,2882.6,2881.4,0.71218383]
[1764004896813,0.72559411,2883.2,2881.5,0.71218383]
[1764004897083,0.0984,2882.6,2881.6,0.71218383]
[1764004897284,0.243,2882.5,2881.7,0.71218383]
[1764004897521,0.243,2882.4,2881.8,0.71218383]
[1764004897697,0.243,2882.4,2881.6,0.4508]
[1764004897698,0.243,2882.4,2881.9,0.71218383]
[1764004897894,0.243,2882.4,2882.0,0.71218383]
[1764004898093,0.243,2882.4,2882.1,0.71218383]
[1764004898295,0.243,2882.4,2882.2,0.71218383]
[1764004898616,0.405504,2882.9,2882.3,0.71218383]
[1764004898818,0.405504,2882.9,2881.6,2.37025784]
[1764004898819,0.405504,2882.9,2882.4,0.71218383]
[1764004899020,0.243,2882.8,2882.5,0.71218383]
[1764004899185,0.243,2882.8,2882.6,0.71218383]
[1764004899388,0.243,2882.8,2882.7,0.71837878]
[1764004900221,0.72559411,2883.6,2882.7,0.71837878]
[1764004900222,0.0984,2883.0,2882.7,0.71837878]
[1764004900523,0.243,2882.8,2882.0,2.37025784]
[1764004900820,0.242,2882.7,2882.1,0.72097774]
[1764004900989,0.72559411,2884.1,2882.2,0.72097774]
[1764004901184,0.0984,2883.2,2882.3,1.03484822]
[1764004901391,0.0984,2883.6,2882.6,2.37025784]
[1764004901588,0.002,2884.6,2882.9,2.37025784]
[1764004901804,0.0984,2884.1,2883.0,0.31365289]
[1764004902006,0.0984,2884.1,2882.8,0.4508]
[1764004902245,0.242,2884.0,2882.9,2.68388319]
[1764004902416,0.0984,2884.3,2883.5,2.37025784]
[1764004902614,0.002,2884.6,2883.6,2.68388319]
[1764004902826,0.242,2884.5,2883.7,0.31362535]
[1764004903138,0.242,2884.5,2883.8,0.31691236]
[1764004903304,0.242,2884.5,2883.9,0.31691236]
[1764004903507,0.0984,2884.2,2884.0,0.31691236]
[1764004903699,0.0984,2884.2,2883.8,2.37025784]
[1764004903700,0.0984,2884.4,2883.8,2.37025784]
[1764004904031,0.405504,2884.3,2883.8,1.8253336]
[1764004904539,0.002,2884.6,2883.9,1.8253336]
[1764004904743,0.242,2884.4,2884.0,2.37025784]
[1764004905035,0.242,2884.4,2884.3,1.82414304]
[1764004905737,0.242,2884.4,2884.2,1.82414304]
[1764004905912,0.242,2884.4,2884.1,1.82414304]
[1764004906118,0.002,2884.6,2884.1,1.82414304]
[1764004906313,0.242,2884.3,2884.2,1.82414304]
[1764004906934,0.002,2884.6,2884.2,1.82414304]
[1764004907128,0.242,2884.5,2884.2,1.82414304]
[1764004907330,0.242,2884.5,2884.1,1.82414304]
[1764004907533,0.002,2884.6,2884.0,1.82414304]
[1764004907733,0.242,2884.5,2884.1,1.82414304]
[1764004908332,0.002,2884.6,2884.0,1.82414304]
[1764004908520,0.405504,2883.8,2882.7,2.9583147]
[1764004908849,0.0984,2883.7,2882.2,0.4541]
[1764004909140,0.244,2883.6,2882.2,0.4541]
[1764004909360,0.244,2883.5,2882.3,0.31668787]
[1764004909565,0.244,2883.4,2882.4,0.31668787]
[1764004909731,0.244,2883.4,2882.2,0.4541]
[1764004909927,0.0984,2883.3,2882.2,0.4541]
[1764004910127,0.244,2883.4,2882.2,0.4541]
[1764004910571,0.0984,2883.2,2882.2,0.4541]
[1764004910938,0.0984,2883.2,2882.1,0.1842]
[1764004911474,0.0984,2882.9,2881.4,0.4951]
[1764004911631,0.0984,2882.6,2881.4,0.4951]
[1764004911830,0.243,2882.5,2881.4,0.4951]
[1764004913867,0.3414,2882.5,2881.4,0.4951]
[1764004914238,0.243,2882.4,2881.4,0.4951]
[1764004914639,0.405504,2882.9,2881.4,0.4951]
[1764004914845,0.243,2882.8,2881.4,0.4951]
[1764004915046,0.0984,2883.8,2882.9,0.1859]
[1764004915380,0.243,2883.7,2882.9,0.1859]
[1764004915544,0.243,2883.7,2881.6,9.13631341]
[1764004915545,0.243,2883.7,2882.5,0.1859]
[1764004915738,0.0984,2883.2,2882.1,0.4951]
[1764004915940,0.0984,2883.2,2882.1,0.681]
[1764004916137,0.0984,2883.3,2882.1,0.681]
[1764004916359,0.0984,2883.5,2882.2,0.4951]
[1764004916672,0.243,2883.4,2882.2,0.4951]
[1764004916844,0.72559411,2884.2,2882.2,0.4951]
[1764004917043,0.0984,2883.7,2882.2,0.4951]
[1764004917257,0.405504,2883.4,2882.2,0.4951]
[1764004917456,0.503904,2883.4,2882.2,0.4951]
[1764004918383,0.0984,2883.1,2882.1,0.1859]
[1764004918553,0.242,2883.0,2882.1,0.1859]
[1764004919677,0.0984,2882.9,2882.1,0.1859]
[1764004919874,0.3404,2883.0,2882.1,0.1859]
[1764004920082,0.405504,2882.8,2881.8,0.4951]
[1764004920266,0.405504,2882.8,2881.5,0.4951]
[1764004920579,1.74303853,2884.3,2881.5,0.4951]
[1764004920580,0.72559411,2883.4,2881.5,0.4951]
[1764004920784,0.242,2883.3,2881.6,2.43628361]
[1764004921081,0.242,2883.3,2881.7,0.4951]
[1764004921243,0.405504,2883.0,2881.7,0.4951]
[1764004921443,1.13109811,2882.8,2881.2,0.6844]
[1764004921744,0.0984,2882.5,2881.2,0.6844]
[1764004921938,6.85144885,2882.9,2881.3,0.4951]
[1764004921939,0.242,2882.4,2881.3,0.4951]
[1764004922480,0.0984,2883.5,2881.3,0.4951]
[1764004922781,0.0984,2882.9,2881.3,2.93138361]
[1764004922979,0.242,2882.8,2881.3,0.4951]
[1764004923281,0.242,2882.8,2881.4,0.4951]
[1764004923990,3.46328946,2887.5,2881.4,0.4951]
[1764004923991,6.85144885,2884.2,2882.7,0.1859]
[1764004924153,0.0984,2883.8,2882.7,0.1859]
[1764004924399,0.242,2884.1,2882.7,0.1859]
[1764004924400,0.0984,2884.1,2882.7,0.681]
[1764004924740,0.242,2883.7,2882.7,0.681]
[1764004925022,0.242,2883.7,2882.7,0.1859]
[1764004925333,0.242,2883.7,2882.8,0.681]
[1764004925516,0.242,2883.6,2882.8,0.681]
[1764004925717,0.242,2883.6,2882.9,0.4951]
[1764004927136,0.39807167,2886.9,2884.2,0.1859]
[1764004927315,0.39807167,2886.9,2885.1,0.1859]
[1764004927316,6.409932,2886.8,2885.1,0.1859]
[1764004927519,0.0984,2886.6,2885.1,0.1859]
[1764004927718,0.4576,2886.5,2885.1,0.1859]
[1764004928130,0.0984,2886.4,2885.1,0.1859]
[1764004928315,0.4576,2886.5,2885.1,0.1859]
[1764004928515,0.243,2886.4,2885.2,0.4951]
[1764004929047,0.243,2886.3,2885.2,0.4951]
[1764004929206,0.1858,2886.9,2885.2,0.4951]
[1764004929414,0.1858,2886.9,2885.2,0.90980493]
[1764004929623,0.243,2886.8,2885.3,0.405504]
[1764004929908,0.243,2886.8,2885.2,7.07163162]
[1764004929909,0.243,2886.7,2885.5,0.405504]
[1764004930110,0.243,2886.7,2885.4,3.3024643]
[1764004930305,1.0,2888.0,2885.2,10.04249154]
[1764004930306,0.243,2886.6,2885.5,6.16182669]
[1764004930527,0.243,2886.6,2885.6,0.61618267]
[1764004930736,0.243,2886.6,2885.2,0.41470493]
[1764004930918,0.243,2886.6,2885.1,4.37755591]
[1764004931521,0.243,2886.6,2885.1,0.91149411]
[1764004931720,0.243,2886.6,2885.1,0.1859]
[1764004931943,0.7006,2886.6,2885.1,0.1859]
[1764004932147,0.7006,2886.6,2885.2,0.4951]
[1764004932350,0.4576,2886.5,2885.2,0.4951]
[1764004932507,0.556,2886.5,2884.6,0.4951]
[1764004932710,0.1858,2886.9,2885.1,0.05]
[1764004932711,0.243,2886.4,2885.1,0.05]
[1764004933210,0.4576,2886.3,2885.1,0.05]
[1764004933409,0.4576,2886.3,2885.1,0.5451]
[1764004933831,0.243,2886.2,2885.1,0.5451]
[1764004934349,0.4576,2886.7,2885.1,0.5451]
[1764004934550,0.243,2886.6,2885.1,0.5451]
[1764004934850,0.243,2886.6,2885.1,1.56242068]
[1764004935048,0.1858,2886.9,2885.2,0.405504]
[1764004935253,0.243,2886.6,2885.2,0.900604]
[1764004935449,0.243,2886.6,2885.4,6.16182669]
[1764004935622,0.4576,2887.3,2885.4,6.86806976]
[1764004935825,0.243,2886.8,2885.5,0.900604]
[1764004936216,0.243,2886.8,2885.6,3.96058378]
[1764004936415,0.243,2886.8,2885.7,0.4951]
[1764004936762,0.4576,2886.7,2885.2,0.4951]
[1764004937315,0.556,2886.7,2885.2,0.4951]
[1764004937530,0.1858,2886.9,2885.2,0.4951]
[1764004937730,0.242,2886.8,2885.2,0.896223]
[1764004937935,0.242,2886.8,2885.2,0.4951]
[1764004938220,0.242,2886.8,2885.3,0.4951]
[1764004938712,0.6996,2886.8,2885.3,0.4951]
[1764004939918,0.4806,2886.7,2885.3,0.4951]
[1764004940556,0.1858,2886.9,2885.3,0.4951]
[1764004940557,0.242,2886.6,2885.3,0.4951]
[1764004940767,0.591304,2887.4,2885.3,0.4951]
[1764004940768,0.1858,2887.4,2885.5,6.16182669]
[1764004940924,0.242,2887.2,2886.5,0.1859]
[1764004941127,0.242,2887.2,2886.2,0.1859]
[1764004941657,0.6785,2887.9,2886.3,0.4952]
[1764004941856,0.242,2887.4,2886.3,0.4952]
[1764004942057,0.242,2887.4,2886.3,1.17949267]
[1764004942566,0.4806,2887.3,2886.2,0.1859]
[1764004942762,0.242,2887.2,2886.2,0.1859]
[1764004943142,0.4806,2887.3,2886.2,0.1859]
[1764004943336,0.242,2887.2,2886.2,0.1859]
[1764004943861,0.7226,2887.2,2886.2,0.1859]
[1764004945249,0.4806,2887.1,2886.2,0.1859]
[1764004945450,0.4806,2887.1,2885.7,0.1859]
[1764004945654,0.0984,2887.0,2885.7,0.1859]
[1764004945854,0.4806,2887.1,2885.7,0.1859]
[1764004946035,0.2963,2886.9,2885.7,0.1859]
[1764004946239,0.1979,2886.9,2885.7,0.1859]
[1764004946482,0.4806,2886.8,2885.7,0.1859]
[1764004947369,0.244,2887.2,2885.8,0.4952]
[1764004947370,0.002,2887.2,2885.8,0.4952]
[1764004947571,0.241,2887.1,2885.8,0.4952]
[1764004948142,0.002,2887.2,2885.8,0.4952]
[1764004948440,0.002,2887.2,2885.9,0.761174]
[1764004948441,0.4826,2887.2,2885.9,0.761174]
[1764004948672,0.4826,2887.2,2885.8,0.4952]
[1764004949174,0.4826,2887.2,2885.7,0.1859]
[1764004949580,0.4826,2887.2,2885.8,0.4952]
[1764004950987,0.405504,2887.1,2885.7,0.1859]
[1764004951252,0.0984,2886.6,2885.3,0.4952]
[1764004951452,0.0984,2886.7,2885.3,0.4952]
[1764004951657,0.1979,2886.5,2885.3,0.4952]
[1764004951902,0.24,2886.4,2885.3,0.4952]
[1764004952805,0.24,2886.4,2885.4,0.39610918]
[1764004953188,0.24,2886.4,2885.4,0.23809418]
[1764004953396,0.24,2886.4,2885.5,0.03093]
[1764004953703,0.24,2886.4,2885.1,3.51606765]
[1764004953903,0.24,2886.4,2885.2,0.6982241]
[1764004954558,0.1979,2886.7,2885.2,14.460724]
[1764004954876,0.1979,2886.7,2885.2,10.99475977]
[1764004955073,0.1979,2886.7,2885.2,14.460724]
[1764004955474,0.1979,2886.7,2885.2,4.16418151]
[1764004955677,0.1979,2886.7,2885.3,1.64472844]
[1764004955968,0.24,2887.5,2885.9,6.83063727]
[1764004956172,0.24,2887.5,2886.0,0.2988]
[1764004956397,0.4826,2887.2,2886.0,0.2988]
[1764004956701,0.4826,2887.2,2886.0,0.57012656]
[1764004957305,0.002,2887.2,2886.2,2.41446563]
[1764004958171,0.002,2887.2,2886.2,2.71326563]
[1764004958596,0.002,2887.2,2886.2,2.41446563]
[1764004958771,0.002,2887.2,2886.3,0.2988]
[1764004958953,0.002,2887.2,2886.4,0.27132656]
[1764004959560,0.002,2887.2,2886.4,0.57012656]
[1764004960571,0.002,2887.2,2887.1,0.2988]
[1764004960778,1.0,2888.0,2887.0,9.74182663]
[1764004960964,1.0,2888.0,2887.9,6.83063727]
[1764004961160,1.0,2888.0,2887.9,7.513701]
[1764004961470,0.00559424,2889.0,2888.3,6.83063727]
[1764004961685,0.00559424,2889.0,2888.9,0.093]
[1764004962097,0.00559424,2889.0,2888.9,0.3918]
[1764004962904,0.00559424,2889.0,2888.9,0.093]
[1764004963106,0.00559424,2889.0,2888.9,0.3918]
[1764004963475,0.00559424,2889.0,2888.2,2.42739098]
[1764004963660,0.00559424,2889.0,2888.1,0.2988]
[1764004963860,0.1979,2888.9,2888.0,0.093]
[1764004964308,0.4806,2888.8,2887.5,0.093]
[1764004964473,0.1979,2888.9,2887.7,0.2988]
[1764004965647,0.1979,2888.9,2887.5,0.093]
[1764004965807,0.4806,2888.8,2887.5,0.093]
[1764004967111,0.579,2888.8,2887.5,0.093]
[1764004967312,0.579,2888.8,2886.7,2.52039098]
[1764004967313,0.4806,2888.8,2887.1,0.093]
[1764004967514,0.405504,2888.7,2887.1,0.093]
[1764004967812,0.0984,2888.6,2887.1,0.093]
[1764004968008,0.4823,2888.7,2887.1,0.093]
[1764004968222,0.4823,2888.7,2887.1,0.3918]
[1764004969788,0.1979,2888.9,2887.1,0.093]
[1764004969989,0.1979,2888.9,2887.2,7.22592662]
[1764004970171,0.1979,2888.9,2887.3,0.73189266]
[1764004970517,0.6697,2888.9,2887.3,1.03069266]
[1764004970715,0.6697,2888.9,2887.3,0.2988]
[1764004970919,0.6697,2888.9,2886.7,2.42739098]
[1764004970920,0.1887,2887.4,2886.7,2.42739098]
[1764004971081,0.5702,2888.8,2886.7,0.2988]
[1764004971281,0.139,2888.1,2886.8,0.2988]
[1764004972015,0.1979,2888.9,2886.8,0.2988]
[1764004972016,0.239,2888.6,2886.8,0.2988]
[1764004972222,0.239,2888.6,2886.8,0.5714191]
[1764004972395,0.4718,2888.5,2886.8,0.5714191]
[1764004972591,0.4718,2888.5,2886.5,3.46432973]
[1764004972918,0.4718,2888.5,2886.9,0.2988]
[1764004973321,0.4718,2888.5,2886.4,0.093]
[1764004973523,0.0984,2888.3,2886.4,0.093]
[1764004973896,0.4718,2888.2,2886.4,0.093]
[1764004974615,0.5702,2888.2,2886.4,0.093]
[1764004974924,0.4718,2888.2,2886.4,0.093]
[1764004975122,0.4718,2888.2,2886.4,0.3918]
[1764004975325,0.4718,2888.2,2886.5,0.38564371]
[1764004975527,0.4718,2888.2,2886.4,0.3918]
[1764004975724,0.4718,2888.2,2886.4,0.093]
[1764004975928,0.5702,2888.2,2886.4,0.093]
[1764004976101,0.0984,2888.0,2886.4,0.093]
[1764004976516,0.6605,2887.9,2886.4,0.093]
[1764004977009,0.4718,2887.8,2886.4,0.093]
[1764004978029,0.1887,2887.9,2886.4,3.85632328]
[1764004978206,0.1887,2887.9,2886.5,0.38563233]
[1764004978590,0.72559411,2887.7,2886.1,0.0628]
[1764004978797,0.0984,2887.7,2886.1,0.0628]
[1764004979024,0.4718,2887.6,2886.1,0.0628]
[1764004979291,0.5702,2887.6,2886.1,0.0628]
[1764004979493,0.4718,2887.6,2885.8,0.093]
[1764004979731,0.5702,2887.6,2885.8,0.093]
[1764004980144,0.5702,2887.6,2885.8,0.3918]
[1764004980445,0.4718,2887.6,2885.8,0.3918]
[1764004980597,0.4718,2887.8,2885.9,0.2988]
[1764004980800,0.1887,2887.9,2886.1,14.56991833]
[1764004980999,0.4718,2888.3,2886.4,7.321066]
[1764004981200,0.4718,2888.3,2886.5,0.2988]
[1764004981399,0.4718,2888.3,2886.5,0.5714191]
[1764004981634,0.4718,2888.3,2886.5,0.2988]
[1764004981802,0.4718,2888.3,2886.6,0.2988]
[1764004982833,0.4718,2888.3,2886.2,0.0628]
[1764004983221,0.72559411,2888.2,2886.2,0.0628]
[1764004983421,0.0984,2887.9,2886.2,0.0628]
[1764004983623,1.13109811,2887.8,2886.0,0.001]
[1764004983940,0.0984,2887.5,2886.0,0.001]
[1764004984142,0.238,2887.4,2886.0,0.001]
[1764004984532,0.4718,2887.3,2886.0,0.001]
[1764004985949,0.238,2887.2,2886.0,0.001]
[1764004986358,0.4718,2887.1,2886.0,0.001]
[1764004988971,0.1887,2886.1,2886.0,0.001]
[1764004989169,0.4718,2887.1,2886.0,0.001]
[1764004989467,0.1887,2886.6,2886.0,0.001]
[1764004990582,0.6605,2886.6,2886.0,0.001]
[1764004991476,0.6605,2886.6,2885.1,0.001]
[1764004991477,0.4718,2886.5,2885.1,0.001]
[1764004991778,0.4718,2886.5,2885.1,0.1449]
[1764004992261,0.238,2886.4,2885.1,0.1449]
[1764004992595,0.7098,2886.3,2885.1,0.1449]
[1764004992975,0.4718,2886.2,2885.1,0.1449]
[1764004995101,0.1887,2886.6,2885.2,0.2998]
[1764004995303,0.7098,2886.5,2885.3,0.39107844]
[1764004995596,0.7098,2886.5,2885.2,0.2998]
[1764004996960,0.238,2886.5,2885.3,3.4658441]
[1764004997166,0.238,2886.5,2885.4,0.2998]
[1764004998063,0.7098,2886.5,2885.4,0.2998]
[1764004998264,0.7098,2886.5,2885.4,0.37657138]
[1764004998504,0.4718,2886.4,2885.1,0.1449]
[1764004999400,0.4718,2886.4,2885.1,3.61095656]
[1764004999617,0.4718,2886.4,2885.1,0.1449]
[1764004999824,0.4718,2886.4,2885.2,0.36110589]
[1764005000185,0.4718,2886.4,2885.1,0.4447]
[1764005000609,0.4718,2886.4,2885.1,3.91077823]
[1764005001187,0.1887,2886.6,2885.1,3.91077823]
[1764005001388,0.1837,2886.9,2885.2,0.3998]
[1764005002212,0.1837,2886.9,2885.2,7.69195018]
[1764005002413,0.1837,2886.9,2885.3,1.82350971]
[1764005002590,0.1837,2886.9,2885.3,2.22330971]
[1764005002790,0.1887,2887.8,2885.4,0.3998]
[1764005002992,0.237,2887.7,2885.5,0.405504]
[1764005003190,0.6938,2887.7,2885.5,5.32035]
[1764005003426,0.6938,2887.7,2885.7,6.93072736]
[1764005003629,0.6938,2887.7,2885.7,3.46536368]
[1764005003630,0.4568,2887.6,2885.7,3.46536368]
[1764005003815,0.4568,2887.6,2885.8,0.3998]
[1764005004513,0.5552,2887.6,2885.8,0.3998]
[1764005005695,0.5552,2887.6,2885.9,0.38651494]
[1764005005891,0.5552,2887.6,2885.8,0.3998]
[1764005006096,0.4568,2887.6,2885.1,0.1449]
[1764005006331,0.0984,2887.3,2885.4,0.3998]
[1764005006630,0.0984,2887.5,2885.4,0.3998]
[1764005006929,0.4568,2887.4,2885.4,0.3998]
[1764005007445,0.4568,2887.4,2885.4,3.86551416]
[1764005007653,0.5552,2887.4,2885.5,0.38655142]
[1764005007851,0.5552,2887.4,2885.5,0.78635142]
[1764005008030,0.4568,2887.4,2885.5,0.78635142]
[1764005008548,0.4568,2887.4,2885.6,0.3998]
[1764005009349,0.5552,2887.4,2885.6,0.3998]
[1764005009554,0.4568,2887.4,2885.6,0.3998]
[1764005009725,0.4568,2887.4,2885.7,0.42518507]
[1764005010050,0.4568,2887.4,2885.6,0.3998]
[1764005010051,0.42485681,2887.4,2885.6,0.3998]
[1764005010255,0.0984,2887.2,2885.1,0.1449]
[1764005010416,0.0984,2887.0,2885.3,0.4317]
[1764005010617,0.0984,2887.0,2885.4,0.03465723]
[1764005010825,0.2821,2886.9,2885.1,0.1449]
[1764005011251,0.0984,2886.7,2885.1,0.1449]
[1764005011415,0.236,2886.6,2885.1,0.1449]
[1764005012021,0.4568,2886.5,2885.1,0.1449]
[1764005013254,0.4568,2886.5,2885.1,0.54928683]
[1764005013424,0.4568,2886.5,2885.1,0.1449]
[1764005014463,0.0984,2886.4,2885.1,0.001]
[1764005014666,0.1837,2886.9,2885.1,0.1829]
[1764005014869,0.235,2886.4,2885.2,0.4465]
[1764005015379,0.235,2886.4,2885.1,0.1829]
[1764005015536,0.21963223,2886.4,2885.1,0.1829]
[1764005016573,0.44226565,2886.3,2885.1,0.1829]
[1764005016774,0.44226565,2886.3,2885.1,0.001]
[1764005016984,0.44226565,2886.3,2885.0,0.001]
[1764005016985,7.95845018,2885.2,2885.0,0.001]
[1764005017176,1.36559411,2885.1,2884.5,0.001]
[1764005017499,1.20639411,2884.6,2883.0,0.0628]
[1764005017638,0.4826,2883.8,2883.0,0.0628]
[1764005017837,0.4826,2883.8,2882.8,0.0628]
[1764005017838,0.235,2883.7,2882.8,0.0628]
[1764005018137,0.4187,2883.7,2882.8,0.0628]
[1764005018570,0.8755,2883.7,2882.8,0.0628]
[1764005018789,0.1837,2884.2,2883.6,0.103]
[1764005018949,0.235,2884.3,2883.6,0.567]
[1764005019581,0.1837,2884.8,2884.2,0.1162]
[1764005019871,0.1837,2884.9,2884.2,0.1162]
[1764005020073,0.16928094,2884.9,2884.2,0.1162]
[1764005020291,0.1837,2884.9,2884.2,0.1162]
[1764005020472,0.6405,2884.9,2883.6,0.5559]
[1764005020642,0.6405,2884.9,2883.6,4.02378714]
[1764005020969,0.1837,2884.9,2883.7,0.85527871]
[1764005021139,0.16808543,2884.9,2883.7,0.85527871]
[1764005021336,0.16808543,2884.9,2883.8,0.4529]
[1764005021539,0.4568,2884.8,2883.6,0.103]
[1764005021768,0.4568,2884.8,2883.7,0.4529]
[1764005021981,0.16808543,2884.9,2883.7,0.4529]
[1764005022181,0.235,2885.1,2883.7,0.4529]
[1764005022390,0.235,2885.1,2883.8,0.40236963]
[1764005022752,0.6918,2885.1,2883.8,0.85526963]
[1764005023156,0.6918,2885.1,2883.9,0.4529]
[1764005023388,0.1837,2885.2,2883.9,0.4529]
[1764005023597,0.235,2885.0,2883.9,0.4529]
[1764005023810,0.1837,2886.0,2885.1,0.6498]
[1764005023956,0.235,2885.9,2885.1,0.6498]
[1764005024152,0.235,2885.9,2884.8,0.1641]
[1764005024400,0.4568,2885.8,2884.8,0.1641]
[1764005024609,0.44106038,2885.8,2884.8,0.1641]
[1764005025162,0.44106038,2885.8,2884.0,0.617]
[1764005025937,0.405504,2885.5,2883.6,0.103]
[1764005026084,5.40539411,2885.6,2883.6,0.103]
[1764005026085,0.503904,2885.3,2883.6,0.103]
[1764005026470,0.4568,2885.2,2883.7,0.4529]
[1764005026676,0.235,2885.1,2883.7,0.4529]
[1764005027096,0.4888,2885.0,2883.7,0.4529]
[1764005027595,0.1914,2884.9,2883.7,0.4529]
[1764005027958,0.4888,2884.8,2883.7,0.4529]
[1764005029295,0.47391422,2884.8,2883.7,0.4529]
[1764005030264,0.45926365,2884.8,2883.7,0.4529]
[1764005030667,0.45926365,2884.8,2883.6,0.103]
[1764005031497,0.45926365,2884.8,2883.6,0.5777]
[1764005031696,0.234,2884.7,2883.6,0.5777]
[1764005031888,0.234,2884.7,2883.7,0.40456467]
[1764005032199,0.234,2884.7,2883.6,0.5777]
[1764005033002,0.405504,2885.7,2884.6,0.4541]
[1764005033207,0.002,2886.9,2885.8,9.686034]
[1764005033509,0.002,2887.2,2886.7,0.0713]
[1764005033691,0.236,2888.4,2886.8,3.28624432]
[1764005033890,0.44819524,2888.6,2886.9,6.84163515]
[1764005034093,0.1987,2889.1,2887.3,6.84163515]
[1764005034286,0.1987,2889.2,2887.8,6.92568736]
[1764005034479,0.236,2889.3,2887.9,0.4747]
[1764005034698,0.22572864,2889.3,2887.9,0.4747]
[1764005035220,0.22572864,2889.3,2888.0,0.405504]
[1764005035807,0.22572864,2889.3,2888.1,0.624]
[1764005035972,0.21048263,2889.3,2888.1,0.624]
[1764005036172,0.21048263,2889.3,2888.2,0.4747]
[1764005036685,0.1987,2889.7,2888.2,0.4747]
[1764005037093,0.18320903,2889.7,2888.2,0.4747]
[1764005037274,0.64440903,2889.7,2888.2,0.4747]
[1764005039004,0.18320903,2889.7,2888.2,0.4747]
[1764005039204,0.64440903,2889.7,2888.2,0.4747]
[1764005039684,0.18520903,2889.7,2888.2,0.4747]
[1764005039893,0.4612,2889.6,2888.2,0.4747]
[1764005040612,0.002,2889.7,2889.5,0.1825]
[1764005040810,0.002,2889.7,2889.2,0.1825]
[1764005041380,0.002,2889.7,2889.0,0.1825]
[1764005041717,0.002,2889.7,2888.5,0.4747]
[1764005042713,0.22187483,2889.8,2888.5,0.4747]
[1764005042909,0.4612,2889.7,2888.5,0.4747]
[1764005043916,0.22187483,2889.8,2888.5,0.4747]
[1764005045717,0.68307483,2889.8,2888.5,0.4747]
[1764005046230,0.4612,2889.7,2888.1,0.624]
[1764005046812,0.4612,2889.7,2888.1,0.1493]
[1764005047113,0.0984,2889.6,2888.1,0.1493]
[1764005047428,0.234,2889.5,2888.2,0.4747]
[1764005047840,0.234,2889.5,2887.7,6.84163515]
[1764005047841,7.30283515,2889.4,2887.6,0.1493]
[1764005047983,0.4612,2889.4,2888.1,0.1647]
[1764005048279,0.72559411,2888.8,2887.4,0.1493]
[1764005048478,0.1987,2886.9,2885.9,1.3360034]
[1764005048682,0.234,2886.8,2885.4,0.4747]
[1764005048905,0.6952,2886.8,2885.1,0.4747]
[1764005049192,0.6952,2886.8,2885.2,0.4747]
[1764005049193,0.4612,2886.8,2885.2,0.4747]
[1764005049394,0.234,2886.7,2885.2,0.4747]
[1764005050114,0.6952,2886.7,2885.2,0.4747]
[1764005050480,0.6952,2886.7,2885.3,3.4658441]
[1764005050783,0.1987,2886.9,2885.3,3.4658441]
[1764005050784,0.234,2886.6,2885.5,6.84163515]
[1764005050996,0.4327,2886.9,2885.5,6.84163515]
[1764005051333,0.4327,2886.9,2885.6,0.4747]
[1764005051618,0.8939,2886.9,2885.6,0.4747]
[1764005051780,0.4327,2886.9,2885.7,0.405504]
[1764005051986,0.4327,2886.9,2885.8,0.77218392]
[1764005052192,0.1987,2887.5,2886.8,0.1825]
[1764005052386,0.234,2887.7,2886.8,0.1825]
[1764005052894,0.6952,2887.7,2886.4,0.1825]
[1764005053287,0.6952,2887.7,2886.5,0.4747]
[1764005053487,0.234,2887.7,2886.5,7.31633515]
[1764005053690,0.234,2887.8,2886.6,0.74988352]
[1764005053992,0.1987,2890.1,2886.6,0.74988352]
[1764005053993,21.905499,2889.9,2887.9,0.1493]
[1764005054202,0.1987,2891.9,2887.9,0.1493]
[1764005054203,0.1987,2894.5,2891.2,0.4612]
[1764005054401,0.1987,2894.5,2892.3,6.84163515]
[1764005054650,0.6599,2894.5,2892.7,0.4612]
[1764005054787,0.1987,2894.5,2891.2,2.37874421]
[1764005054986,0.1987,2895.1,2890.1,1.79966202]
[1764005054987,0.45,2893.9,2892.7,5.127142]
[1764005055190,0.45,2893.9,2893.2,0.88842496]
[1764005055442,0.45,2893.9,2893.1,6.84163515]
[1764005055734,0.45,2893.9,2893.2,8.1462]
[1764005056038,0.45,2893.9,2893.8,17.000548]
[1764005056220,0.45,2893.9,2893.8,9.661818]
[1764005056725,0.45,2893.9,2893.4,11.732571]
[1764005056930,0.45,2893.9,2893.4,9.661818]
[1764005057252,0.45,2893.9,2893.8,9.661818]
[1764005057552,0.45,2893.9,2893.0,9.661818]
[1764005057730,0.45,2893.9,2893.3,0.405504]
[1764005057931,0.45,2893.9,2893.6,9.661818]
[1764005058103,0.45,2893.9,2893.2,0.405504]
[1764005058499,0.45,2893.9,2893.1,12.903766]
[1764005058500,0.45,2893.9,2893.4,3.86162869]
[1764005058714,0.452,2893.9,2893.5,9.661818]
[1764005058927,0.452,2893.9,2893.5,12.667518]
[1764005059137,0.452,2893.9,2893.5,9.661818]
[1764005059322,0.452,2893.9,2893.4,9.5777861]
[1764005059323,0.452,2893.9,2893.4,0.405504]
[1764005059524,0.452,2893.9,2893.5,9.661818]
[1764005059846,0.452,2893.9,2893.1,3.45646794]
[1764005060015,0.452,2893.9,2893.2,9.661818]
[1764005060213,0.452,2893.9,2893.4,9.661818]
[1764005060409,0.452,2893.9,2893.2,9.661818]
[1764005060627,0.452,2893.9,2893.2,13.11817913]